fUSD/lending_fUSD_20241224
["ID","MTS","AMOUNT","RATE_DAILY","PERIOD"]
[346545545,1735069833815,-223.26339162,0.000129,2]
[346545546,1735069833830,-237.23470834,0.000129,2]
[346545547,1735069833846,-318.43555457,0.00012935,2]
[346545548,1735069833861,-160.0,0.00012959,2]
[346545549,1735069833877,-359.02289266,0.00012973,2]
[346545550,1735069833894,-1477.856661,0.00012996,2]
[346545551,1735069833909,-1569.4426222,0.00012996,2]
[346545552,1735069833924,-622.9630808,0.00012996,2]
[346545553,1735069833937,-688.0,0.00013,2]
[346545554,1735069833948,-1538.68152776,0.00013,2]
[346545555,1735069834219,-64585.55587239,0.00013,2]
[346545556,1735069834283,-31121.9990436,0.00013,2]
[346545557,1735069834295,-26332.65227146,0.00013,2]
[346545558,1735069834342,-376.54051804,0.00013,2]
[346545559,1735069834354,-3096.74511675,0.00013,2]
[346545560,1735069834620,359.56843237,9.265e-05,2]
[346545561,1735069834641,569.33156763,9.265e-05,2]
[346545565,1735069837960,-400.0,0.00011183,2]
[346545566,1735069837970,-612.13738047,0.00011529,2]
[346545567,1735069837982,-316.76261953,0.00011529,2]
[346545568,1735069837991,-1601.37613047,0.00013,2]
[346545569,1735069838003,-8879.7612,0.00013,2]
[346545570,1735069838073,-9770.62554215,0.00013,2]
[346545571,1735069838084,-18651.8728496,0.00013,2]
[346545572,1735069838095,-268.12099998,0.00013,2]
[346545573,1735069838109,-25023.90649331,0.00013,2]
[346545574,1735069838120,-1267.146473,0.00013,2]
[346545592,1735069840206,-16726.73742979,0.00013,2]
[346545593,1735069840218,-20422.04033099,0.00013,2]
[346545594,1735069840231,-25110.7364225,0.00013,2]
[346545595,1735069840241,-20321.36239742,0.00013,2]
[346545596,1735069840253,-2429.4141106,0.00013,2]
[346545597,1735069840420,-24104.6103854,0.00013,2]
[346545598,1735069840432,-37531.26027224,0.00013,2]
[346545599,1735069840444,-1960.52,0.00013,2]
[346545600,1735069840457,-821.3856335,0.00013,2]
[346545601,1735069840469,-959.85,0.00013,2]
[346545602,1735069840629,-288.98629825,0.00013,2]
[346545604,1735069840640,-493.21434,0.00013,2]
[346545606,1735069840652,-25403.3509639,0.00013,2]
[346545624,1735069844195,-792.83061176,0.00013,2]
[346545625,1735069844314,-489.29187735,0.00013,2]
[346545626,1735069844326,-981.28,0.00013,2]
[346545627,1735069844338,-2914.44,0.00013,2]
[346545628,1735069844350,-954.53886546,0.00013,2]
[346545629,1735069844408,-701.666667,0.00013,2]
[346545630,1735069844419,-2547.91315279,0.00013,2]
[346545631,1735069844527,-1006.62630079,0.00013,2]
[346545632,1735069844539,-352.72799642,0.00013,2]
[346545633,1735069844550,-62022.914136,0.00013,2]
[346545642,1735069845874,-266595.62376834,0.00013,2]
[346545643,1735069845966,-375670.0,0.00013,2]
[346545644,1735069845978,-4924.56008124,0.00013,2]
[346545645,1735069845989,-1973.17459424,0.00013,2]
[346545646,1735069846056,-284351.37357835,0.00013,2]
[346545647,1735069846152,-2146.79001334,0.00013,2]
[346546192,1735070613697,167.97,9.46e-05,2]
[346546193,1735070765928,-976.61,9.751e-05,2]
[346546194,1735070934103,-151.21384592,9.702e-05,2]
[346546199,1735071032158,-151.1,0.00010137,2]
[346546200,1735071032167,-617.93,0.00011562,2]
[346546201,1735071032177,-12755.92,0.00011562,2]
[346546202,1735071032186,-617.93,0.00011565,2]
[346546203,1735071032195,-617.93,0.00011568,2]
[346546204,1735071032205,-617.93,0.00011571,2]
[346546205,1735071032215,-617.93,0.00011574,2]
[346546206,1735071032224,-617.93,0.00011577,2]
[346546207,1735071032234,-617.93,0.0001158,2]
[346546208,1735071032243,-400.0,0.00011581,2]
[346546209,1735071032259,-617.93,0.00011583,2]
[346546210,1735071032268,-617.93,0.00011586,2]
[346546211,1735071032277,-617.93,0.00011589,2]
[346546212,1735071032287,-617.93,0.00011592,2]
[346546213,1735071032296,-617.93,0.00011595,2]
[346546214,1735071032305,-617.93,0.00011599,2]
[346546215,1735071032315,-617.93,0.00011602,2]
[346546216,1735071032324,-617.93,0.00011605,2]
[346546217,1735071032333,-617.93,0.00011608,2]
[346546218,1735071032342,-617.93,0.00011611,2]
[346546219,1735071032351,-617.93,0.00011614,2]
[346546220,1735071032360,-617.93,0.00011617,2]
[346546221,1735071032369,-617.93,0.0001162,2]
[346546222,1735071032379,-2751.0,0.00011625,2]
[346546223,1735071032388,-190.97900704,0.0001163,2]
[346546224,1735071032400,-500.0,0.00011644,2]
[346546225,1735071032410,-2000.0,0.0001173,2]
[346546226,1735071032419,-310.24,0.00011731,2]
[346546227,1735071032428,-200.0,0.00011825,2]
[346546228,1735071032437,-681.76,0.00011966,2]
[346546229,1735071032447,-976.61,0.00012015,2]
[346546230,1735071032456,-1844.13,0.00012017,2]
[346546231,1735071032465,-644.61,0.00012055,2]
[346546232,1735071032474,-250.0,0.00012083,2]
[346546233,1735071032483,-619.04118203,0.00012083,2]
[346546234,1735071032495,-380.95881797,0.00012083,2]
[346546235,1735071032511,-945.29,0.00012104,2]
[346546236,1735071032520,-250.0,0.00012166,2]
[346546237,1735071032529,-3941.21469028,0.00012204,2]
[346546238,1735071032540,-3116.2716893,0.00012204,2]
[346546239,1735071032550,-12886.38886164,0.00012204,2]
[346546240,1735071034607,-3956.12475878,0.00012204,2]
[346546241,1735071034618,-499.99,0.00012204,2]
[346546242,1735071034627,-150.99,0.00012204,2]
[346546243,1735071034636,-9634.48,0.00012204,2]
[346546244,1735071034645,-250.0,0.00012241,2]
[346546245,1735071034654,-2247.74,0.00012241,2]
[346546246,1735071034663,-21.25445411,0.00012241,2]
[346546247,1735071035019,-1541.5454253,0.00012241,2]
[346546248,1735071035061,-3398.66012059,0.00012241,2]
[346546249,1735071035070,-273.21,0.00012278,2]
[346546250,1735071035080,-150.0,0.00012278,2]
[346546251,1735071035089,-200.0,0.00012311,2]
[346546252,1735071035099,-536.63,0.00012347,2]
[346546253,1735071035109,-559.057,0.0001235,2]
[346546254,1735071035118,-190.97900703,0.00012358,2]
[346546255,1735071035127,-1640.40587242,0.00012458,2]
[346546256,1735071035169,-2682.42412758,0.00012458,2]
[346546257,1735071035178,-150.0,0.00012553,2]
[346546258,1735071035187,-3888.0,0.00012553,2]
[346546260,1735071035197,-166.13,0.00012608,2]
[346546262,1735071035205,-5194.0,0.00012614,2]
[346546264,1735071035214,-565.0,0.00012678,2]
[346546266,1735071035223,-496.914,0.00012678,2]
[346546268,1735071035233,-436.42,0.00012678,2]
[346546270,1735071035242,-2066.62,0.00012678,2]
[346546272,1735071035253,-300.0,0.00012678,2]
[346546274,1735071035262,-150.0,0.00012678,2]
[346546276,1735071035272,-365.25,0.00012678,2]
[346546278,1735071035281,-436.42,0.00012678,2]
[346546280,1735071035289,-365.25,0.00012678,2]
[346546282,1735071035298,-150.0,0.00012678,2]
[346546284,1735071035307,-436.42,0.00012678,2]
[346546286,1735071035316,-150.0,0.00012678,2]
[346546288,1735071035325,-365.25,0.00012678,2]
[346546290,1735071035334,-436.42,0.00012678,2]
[346546292,1735071035342,-150.0,0.00012678,2]
[346546294,1735071035351,-365.25,0.00012678,2]
[346546296,1735071035360,-150.0,0.00012678,2]
[346546298,1735071035369,-672.03992094,0.00012805,2]
[346546300,1735071035378,-437.17,0.00012826,2]
[346546301,1735071035387,-437.17,0.00012826,2]
[346546303,1735071035397,-292.91558048,0.00012826,2]
[346546306,1735071035409,-144.25441952,0.00012826,2]
[346546308,1735071035419,-843.08836114,0.0001287,2]
[346546310,1735071035428,-3000.0,0.0001287,2]
[346546312,1735071035437,-8284.30588985,0.000129,2]
[346546353,1735071038125,-500.0,0.000129,2]
[346546354,1735071038179,-1954.01,0.000129,2]
[346546355,1735071038191,-292.09648623,0.000129,2]
[346546356,1735071038202,-997.58171499,0.000129,2]
[346546357,1735071038213,-862.24427429,0.000129,2]
[346546358,1735071038235,-5366.68595803,0.000129,2]
[346546359,1735071038246,-562.24487661,0.000129,2]
[346546360,1735071038259,-2270.5918,0.000129,2]
[346546361,1735071038268,-3058.7991,0.000129,2]
[346546362,1735071038276,-173.95288717,0.000129,2]
[346546363,1735071038285,-162.12990573,0.000129,2]
[346546364,1735071038295,-2325.36006202,0.000129,2]
[346546365,1735071038304,-692.0,0.00012959,2]
[346546366,1735071038313,-2627.654,0.00012996,2]
[346546367,1735071038322,-164.146,0.00012996,2]
[346546368,1735071038331,-664.9154865,0.00012998,2]
[346546369,1735071038339,-658.14528499,0.00012998,2]
[346546371,1735071038349,-325.7179614,0.00012998,2]
[346546373,1735071038357,-553.4877817,0.00012998,2]
[346546375,1735071038366,-311.2479792,0.00012998,2]
[346546377,1735071038375,-761.0,0.00013,2]
[346546378,1735071038383,-1116.05921114,0.00013,2]
[346546379,1735071038392,-12912.54766354,0.00013,2]
[346546384,1735071038426,-14405.72273754,0.00013,2]
[346546385,1735071038437,-1149.50769704,0.00013,2]
[346546387,1735071038457,-1690.6107,0.00013,2]
[346546389,1735071038468,-8175.73921953,0.00013,2]
[346546392,1735071038479,-9744.9999995,0.00013,2]
[346546394,1735071038489,-659.78314318,0.00013,2]
[346546425,1735071040132,-1377.29719238,0.00011999,2]
[346546426,1735071040141,-3035.78103553,0.00013,2]
[346546427,1735071040239,-1000.0,0.000129,2]
[346546428,1735071040248,-580.32954373,0.00013,2]
[346546429,1735071040259,-27488.73330852,0.00013,2]
[346546430,1735071040292,-763.28352,0.00013,2]
[346546431,1735071040303,-16434.26436276,0.00013,2]
[346546432,1735071040314,-26766.05,0.00013,2]
[346546433,1735071040346,-4055.43180006,0.00013,2]
[346546434,1735071040356,-1428.50840388,0.00013,2]
[346546435,1735071040401,-1644.3998225,0.00013,2]
[346546436,1735071040455,-738.8308423,0.00013,2]
[346546461,1735071043252,-977.85,0.00013,2]
[346546462,1735071043264,-11523.11443935,0.00013,2]
[346546463,1735071043275,-291.545,0.00013,2]
[346546464,1735071043304,-835.04991627,0.00013,2]
[346546465,1735071043440,-1391.0912456,0.00013,2]
[346546466,1735071043451,-592.0673473,0.00013,2]
[346546467,1735071043462,-4792.73283388,0.00013,2]
[346546468,1735071043699,-10068.59504395,0.00013,2]
[346546469,1735071043711,-5181.81245582,0.00013,2]
[346546470,1735071043722,-512.6900035,0.00013,2]
[346546471,1735071043739,-3793.08,0.00013,2]
[346546472,1735071043749,-347.59,0.00013,2]
[346546473,1735071043774,-11190.27546747,0.00013,2]
[346546474,1735071043785,-512.00786555,0.00013,2]
[346546475,1735071043805,-471.61709589,0.00013,2]
[346546476,1735071043816,-1954.48,0.00013,2]
[346546509,1735071046144,-303.9339621,0.00012998,2]
[346546511,1735071046154,-14536.47191831,0.00013,2]
[346546512,1735071046164,-42357.2776293,0.00013,2]
[346546513,1735071046175,-18398.35670496,0.00013,2]
[346546514,1735071046267,-2554.87239841,0.00013,2]
[346546515,1735071046279,-97649.52600007,0.00013,2]
[346546516,1735071046369,-20995.18058348,0.00013,2]
[346546517,1735071046380,-2070.12506148,0.00013,2]
[346546518,1735071046413,-7557.76034163,0.00013,2]
[346546519,1735071046429,-2339.38047343,0.00013,2]
[346546520,1735071046441,-1070.38850805,0.00013,2]
[346546521,1735071046452,-533.85666094,0.00013,2]
[346546522,1735071046482,-857.69992783,0.00013,2]
[346546523,1735071046517,-1000.0,0.00013,2]
[346546524,1735071046528,-16777.97762511,0.00013,2]
[346546616,1735071058417,150.141108,0.00016,15]
[346546617,1735071058725,150.141108,0.00016,15]
[346546619,1735071521056,62.69843237,9.274e-05,2]
[346546620,1735071521077,105.27156763,9.274e-05,2]
[346546621,1735071664651,694.72843237,9.559e-05,2]
[346546622,1735071664681,240.72156763,9.559e-05,2]
[346546623,1735071800068,213.28,8.809e-05,2]
[346546624,1735071932164,200.0,9.558e-05,2]
[346546625,1735072070900,-4000.0,0.0001,3]
[346546626,1735072074087,-4000.0,0.0001,3]
[346546627,1735072085273,-169.17615408,0.0001,3]
[346546652,1735072232254,-300.0,9.999e-05,2]
[346546653,1735072232265,-3830.82384592,0.0001,3]
[346546654,1735072232275,-1000.0,0.0001,3]
[346546655,1735072232285,-1423.5651884,0.0001,2]
[346546656,1735072232295,-214.5110559,0.00010037,2]
[346546657,1735072232304,-294.39,0.00010137,2]
[346546658,1735072232314,-22946.36218124,0.00010872,2]
[346546659,1735072232325,-414.357515,0.00010872,2]
[346546660,1735072232352,-1694.50664676,0.00010872,2]
[346546661,1735072232362,-4436.58,0.00010927,2]
[346546662,1735072232375,-241.16,0.00010944,2]
[346546663,1735072232385,-400.0,0.00010986,2]
[346546664,1735072232394,-420.0,0.00010999,2]
[346546665,1735072232404,-2506.33,0.00011005,2]
[346546666,1735072232414,-165.81,0.00011036,2]
[346546667,1735072232424,-3074.85,0.00011038,2]
[346546668,1735072232433,-454.47,0.00011078,2]
[346546669,1735072232442,-20423.61028019,0.00011078,2]
[346546670,1735072232453,-1106.67559325,0.00011078,2]
[346546671,1735072232464,-943.4780982,0.00011078,2]
[346546672,1735072232475,-931.00001,0.00011078,2]
[346546673,1735072232487,-495.23601836,0.00011078,2]
[346546674,1735072232496,-297.32916004,0.00011382,2]
[346546675,1735072232517,-76.93083996,0.00011382,2]
[346546676,1735072232526,-374.26,0.00011385,2]
[346546677,1735072232535,-2189.53,0.00011385,2]
[346546678,1735072232544,-374.26,0.00011388,2]
[346546679,1735072232554,-374.26,0.00011391,2]
[346546680,1735072232564,-5459.23,0.00011391,2]
[346546681,1735072232573,-374.26,0.00011394,2]
[346546682,1735072232582,-374.26,0.00011397,2]
[346546683,1735072232591,-374.26,0.000114,2]
[346546684,1735072232600,-374.26,0.00011403,2]
[346546685,1735072232610,-427.41,0.00011403,2]
[346546686,1735072232619,-374.26,0.00011406,2]
[346546687,1735072232628,-1472.68635086,0.00011408,2]
[346546688,1735072232640,-27.31364914,0.00011408,2]
[346546689,1735072232650,-374.26,0.00011409,2]
[346546690,1735072232659,-374.26,0.00011412,2]
[346546691,1735072232668,-374.26,0.00011415,2]
[346546692,1735072232679,-374.26,0.00011418,2]
[346546693,1735072232689,-374.26,0.00011421,2]
[346546694,1735072232698,-374.26,0.00011424,2]
[346546695,1735072232708,-374.26,0.00011427,2]
[346546696,1735072232717,-374.26,0.0001143,2]
[346546697,1735072232726,-374.26,0.00011433,2]
[346546698,1735072232736,-374.26,0.00011436,2]
[346546699,1735072232745,-374.26,0.00011439,2]
[346546700,1735072232754,-200.0,0.00011478,2]
[346546701,1735072232764,-5994.2,0.00011506,2]
[346546702,1735072232773,-1959.4,0.00011507,2]
[346546703,1735072232783,-1852.42,0.0001153,2]
[346546704,1735072232792,-1177.67,0.00011563,2]
[346546705,1735072232802,-1000.0,0.00011564,2]
[346546706,1735072232812,-250.0,0.00011567,2]
[346546707,1735072232821,-300.0,0.00011584,2]
[346546708,1735072232831,-150.0,0.00011592,2]
[346546709,1735072232840,-539.26,0.00011611,2]
[346546710,1735072232849,-167.3,0.00011711,2]
[346546711,1735072232859,-250.0,0.00011747,2]
[346546712,1735072232869,-166.46,0.00011755,2]
[346546713,1735072232878,-7472.45179048,0.00011781,7]
[346546714,1735072232887,-935.45,0.00011823,2]
[346546715,1735072232897,-1027.83,0.00011913,2]
[346546716,1735072232906,-268.31,0.00011964,2]
[346546717,1735072232916,-4710.07204521,0.00011999,2]
[346546718,1735072232927,-3112.0316,0.00012012,2]
[346546719,1735072232936,-587.0,0.00012099,2]
[346546720,1735072232946,-8881.57,0.00012112,2]
[346546721,1735072232955,-861.14,0.00012192,2]
[346546722,1735072232964,-649.53,0.00012192,2]
[346546723,1735072232974,-316.79,0.00012192,2]
[346546724,1735072232983,-392.59,0.00012192,2]
[346546725,1735072232993,-302.28,0.00012192,2]
[346546726,1735072233002,-365.13,0.00012192,2]
[346546727,1735072233012,-150.0,0.00012192,2]
[346546728,1735072233022,-436.42,0.00012192,2]
[346546729,1735072233032,-150.0,0.00012192,2]
[346546730,1735072233241,-436.42,0.00012192,2]
[346546731,1735072233254,-150.0,0.00012192,2]
[346546732,1735072233264,-318.08,0.00012192,2]
[346546733,1735072233274,-977.57,0.00012192,2]
[346546734,1735072233284,-150.0,0.00012192,2]
[346546735,1735072233294,-436.42,0.00012192,2]
[346546736,1735072233304,-150.0,0.00012192,2]
[346546737,1735072233314,-365.0,0.00012192,2]
[346546738,1735072233324,-10.96886195,0.00012192,2]
[346546739,1735072233336,-263.07422854,0.00012192,2]
[346546740,1735072233348,-162.37690951,0.00012192,2]
[346546741,1735072233357,-150.0,0.00012192,2]
[346546742,1735072233369,-977.57,0.00012192,2]
[346546743,1735072233380,-436.42,0.00012192,2]
[346546744,1735072233390,-977.57,0.00012192,2]
[346546745,1735072233399,-150.0,0.00012192,2]
[346546746,1735072233409,-976.01,0.00012192,2]
[346546747,1735072233420,-307.91,0.00012192,2]
[346546748,1735072233435,-157.52,0.00012192,2]
[346546749,1735072233446,-200.76353769,0.00012304,2]
[346546750,1735072235487,-49.23646231,0.00012304,2]
[346546751,1735072235497,-150.141108,0.00012349,2]
[346546752,1735072235507,-171.96651617,0.0001235,2]
[346546753,1735072235519,-379.83648383,0.0001235,2]
[346546754,1735072235528,-150.0,0.00012378,2]
[346546755,1735072235539,-255.3,0.00012402,2]
[346546756,1735072235548,-150.57,0.00012423,2]
[346546757,1735072235558,-871.27,0.00012423,2]
[346546758,1735072235568,-150.0,0.00012423,2]
[346546759,1735072235577,-151.0,0.00012546,2]
[346546760,1735072235587,-150.0,0.00012678,2]
[346546761,1735072235597,-150.0,0.00012678,2]
[346546762,1735072235607,-119.88341555,0.00012678,2]
[346546763,1735072235619,-30.11658445,0.00012678,2]
[346546764,1735072235629,-150.0,0.00012678,2]
[346546765,1735072235639,-203.15,0.00012678,2]
[346546766,1735072235648,-139.70908869,0.00012678,2]
[346546767,1735072235691,-328.54757095,0.00012678,2]
[346546771,1735072235723,-220.46334036,0.00012678,2]
[346546773,1735072235732,-150.52,0.00012678,2]
[346546775,1735072235742,-54.85933044,0.00012678,2]
[346546777,1735072235755,-95.14066956,0.00012678,2]
[346546779,1735072235764,-150.0,0.00012678,2]
[346546781,1735072235774,-151.02569553,0.0001279,2]
[346546782,1735072235784,-151.02569553,0.00012806,2]
[346546784,1735072235794,-2488.815,0.00012811,2]
[346546786,1735072235803,-170.487,0.00012811,2]
[346546787,1735072235813,-151.02569553,0.00012821,2]
[346546788,1735072235822,-177.28,0.00012826,2]
[346546789,1735072235832,-770.7,0.00012826,2]
[346546790,1735072235841,-151.02569553,0.00012837,2]
[346546791,1735072235851,-151.02569553,0.00012853,2]
[346546792,1735072235861,-151.02569553,0.00012869,2]
[346546793,1735072235870,-165.81,0.00012876,2]
[346546794,1735072235880,-150.0,0.00012878,2]
[346546795,1735072235889,-633.0,0.00012878,2]
[346546796,1735072235899,-565.0,0.00012878,2]
[346546797,1735072235909,-588.319,0.00012878,2]
[346546798,1735072235918,-524.203,0.00012878,2]
[346546799,1735072235929,-208.627,0.00012878,2]
[346546800,1735072235939,-3888.0,0.00012878,2]
[346546801,1735072235949,-2011.0,0.00012878,2]
[346546802,1735072235958,-1265.0,0.00012878,2]
[346546803,1735072235968,-635.0,0.00012878,2]
[346546804,1735072235977,-25287.11673058,0.0001288,2]
[346546805,1735072235987,-151.02569553,0.00012884,2]
[346546806,1735072235997,-1627.1084,0.00012886,2]
[346546807,1735072236007,-191.08218015,0.0001289,2]
[346546808,1735072236017,-4253.1759,0.0001289,2]
[346546809,1735072236026,-191.0821801,0.00012891,2]
[346546810,1735072236212,-191.0821801,0.00012892,2]
[346546811,1735072236222,-191.0821801,0.00012893,2]
[346546812,1735072236232,-191.0821801,0.00012894,2]
[346546813,1735072236242,-191.0821801,0.00012896,2]
[346546814,1735072236252,-191.0821801,0.00012897,2]
[346546815,1735072236262,-191.0821801,0.00012898,2]
[346546816,1735072236271,-191.0821801,0.00012899,2]
[346546817,1735072236281,-252.83811484,0.000129,2]
[346546818,1735072236302,-319.72902665,0.000129,2]
[346546819,1735072236314,-762.74469661,0.000129,2]
[346546830,1735072238217,-4800.0,0.000129,2]
[346546831,1735072238229,-1823.02986086,0.000129,2]
[346546832,1735072238274,-405.79108758,0.000129,2]
[346546833,1735072238285,-1222.52211346,0.000129,2]
[346546834,1735072238295,-804.13666519,0.000129,2]
[346546835,1735072238307,-1775.89893481,0.000129,2]
[346546836,1735072238316,-1673.1344,0.000129,2]
[346546837,1735072238325,-743.5123,0.000129,2]
[346546838,1735072238335,-151.02569553,0.000129,2]
[346546839,1735072238344,-1950.0,0.000129,2]
[346546840,1735072238353,-521.4921428,0.000129,2]
[346546841,1735072238363,-191.0821801,0.000129,2]
[346546842,1735072238376,-1783.0,0.00012959,2]
[346546843,1735072238385,-900.0,0.00012973,2]
[346546844,1735072238395,-500.0,0.00012973,2]
[346546845,1735072238404,-159.69580762,0.00012973,2]
[346546846,1735072238417,-919.0,0.00012986,2]
[346546847,1735072238429,-3624.00834856,0.0001299,2]
[346546848,1735072238454,-72801.7198766,0.0001299,2]
[346546849,1735072238465,-10701.94118734,0.0001299,2]
[346546850,1735072238477,-766.26615784,0.0001299,2]
[346546851,1735072238499,-92470.57972451,0.0001299,2]
[346546852,1735072238508,-189.07604222,0.0001299,2]
[346546853,1735072238519,-2464.52992896,0.00012997,2]
[346546854,1735072238528,-500.0,0.00012999,2]
[346546855,1735072238538,-690.0,0.00013,2]
[346546856,1735072238548,-44668.12971452,0.00013,2]
[346546857,1735072238580,-457.29224934,0.00013,2]
[346546858,1735072238591,-326.249997,0.00013,2]
[346546859,1735072238602,-425.99999,0.00013,2]
[346546860,1735072238614,-4087.13897112,0.00013,2]
[346546861,1735072238625,-1241.83745801,0.00013,2]
[346546862,1735072238662,-3399.9997,0.00013,2]
[346546863,1735072238674,-57237.5,0.00013,2]
[346546864,1735072238697,-50959.93994825,0.00013,2]
[346546865,1735072238706,-731.3888292,0.00013,2]
[346546866,1735072238717,-150.0,0.00013,2]
[346546867,1735072238726,-27560.9140545,0.00013,2]
[346546869,1735072238738,-5357.74313937,0.00013,2]
[346546872,1735072240584,-7583.64116492,0.00013,2]
[346546873,1735072240621,-292.3166832,0.00012878,2]
[346546874,1735072240652,-877.6833168,0.00012878,2]
[346546875,1735072240667,-6226.37480439,0.00013,2]
[346546876,1735072240687,-1110.47061722,0.00013,2]
[346546877,1735072240757,-502.0,0.00013,2]
[346546878,1735072240775,-951.48,0.00013,2]
[346546879,1735072240806,-298.81192898,0.00013,2]
[346546880,1735072240825,-1626.62500001,0.00013,2]
[346546881,1735072240843,-19554.14290181,0.00013,2]
[346546882,1735072240861,-95190.0,0.00013,2]
[346546883,1735072240886,-647.19,0.00013,2]
[346546888,1735072243282,-6735.03635244,0.00013,2]
[346546889,1735072243340,-269.1099999,0.00013,2]
[346546890,1735072243351,-349.84,0.00013,2]
[346546891,1735072243363,-696.44,0.00013,2]
[346546892,1735072243400,-284.74638608,0.00013,2]
[346546893,1735072243412,-95117.36350303,0.00013,2]
[346546894,1735072243514,-1032.94,0.00013,2]
[346546895,1735072243526,-1444.06,0.00013,2]
[346546896,1735072243538,-2230.5,0.00013,2]
[346546897,1735072243549,-344.265,0.00013,2]
[346546898,1735072243560,-766.3,0.00013,2]
[346546899,1735072243573,-73302.00931011,0.00013,2]
[346546900,1735072243584,-9257.979785,0.00013,2]
[346546916,1735072246234,-572.41760704,0.000129,2]
[346546918,1735072246243,-621.0,0.00013,2]
[346546927,1735072246398,-4482.15627484,0.00013,2]
[346546928,1735072246470,-1746.0404,0.00013,2]
[346546929,1735072246483,-163136.56907228,0.00013,2]
[346546930,1735072246495,-5353.0,0.00013,2]
[346546931,1735072246507,-166576.03266118,0.00013,2]
[346546932,1735072246563,-512.00416723,0.00012878,2]
[346546933,1735072246576,-6917.36883277,0.00012878,2]
[346546934,1735072246585,-383027.22679225,0.00013,2]
[346546937,1735072246669,-19617.84409245,0.00013,2]
[346546938,1735072246681,-148876.1267666,0.00013,2]
[346546939,1735072246695,-1984.59500004,0.00013,2]
[346546940,1735072246758,-496.96314762,0.00013,2]
[346546941,1735072532624,166.25,9.476e-05,2]
[346546942,1735072674306,177.73,9.403e-05,2]
[346546970,1735073431856,-962.09,9.91e-05,2]
[346546971,1735073431866,-332.34,0.00010137,2]
[346546972,1735073431877,-160.52,0.00010137,2]
[346546973,1735073431886,-189.83936089,0.00011255,2]
[346546974,1735073431895,-250.0,0.00011352,2]
[346546975,1735073431904,-616.03,0.00011355,2]
[346546976,1735073431913,-2099.64,0.00011368,2]
[346546977,1735073431922,-250.0,0.00011377,2]
[346546978,1735073431931,-169.53,0.00011377,2]
[346546979,1735073431941,-23900.0,0.00011384,2]
[346546980,1735073431951,-344.14,0.00011388,2]
[346546981,1735073431960,-1000.0,0.00011388,2]
[346546982,1735073431969,-1470.67,0.00011393,2]
[346546983,1735073431979,-644.87,0.00011393,2]
[346546984,1735073431988,-250.0,0.00011393,2]
[346546985,1735073431997,-4785.99,0.0001143,2]
[346546986,1735073432007,-165.26,0.00011449,2]
[346546987,1735073432016,-150.0,0.00011479,2]
[346546988,1735073432025,-200.0,0.00011487,2]
[346546989,1735073432034,-372.28,0.0001152,2]
[346546990,1735073432044,-548.95,0.0001152,2]
[346546991,1735073432053,-400.0,0.00011544,2]
[346546992,1735073432062,-3686.77,0.00011579,2]
[346546993,1735073432072,-151.85,0.00011644,2]
[346546994,1735073432081,-151.85,0.00011663,2]
[346546995,1735073432090,-2172.28,0.00011668,2]
[346546996,1735073432099,-1500.0,0.00011677,2]
[346546997,1735073432108,-151.85,0.00011683,2]
[346546998,1735073432119,-151.85,0.00011702,2]
[346546999,1735073432128,-2751.0,0.00011742,2]
[346547000,1735073432138,-177.73,0.00011753,2]
[346547001,1735073432149,-150.0,0.00011845,2]
[346547002,1735073432159,-189.83936089,0.00011867,2]